bitfinex/quotes_ETHUSD_20250518
["timestamp","ask_amount","ask_price","bid_price","bid_amount"]
[1747575420144,0.01441107,2515.5,2515.4,36.23093871]
[1747575420500,0.01441107,2515.5,2515.4,35.40903871]
[1747575420754,0.01441107,2515.5,2515.4,20.12303871]
[1747575420932,0.01441107,2515.5,2515.4,35.68903871]
[1747575421241,0.01441107,2515.5,2515.4,39.66454956]
[1747575421447,0.01441107,2515.5,2515.4,20.12303871]
[1747575421605,0.01441107,2515.5,2515.4,19.57303871]
[1747575421935,0.81088447,2515.5,2515.4,35.15003871]
[1747575422130,0.81088447,2515.5,2514.7,0.62909494]
[1747575422131,0.8028,2515.1,2514.7,0.62909494]
[1747575422348,0.8028,2514.8,2514.7,0.62909494]
[1747575422506,4.77925936,2514.8,2514.7,0.62909494]
[1747575423617,0.8028,2514.8,2514.7,0.62909494]
[1747575423943,4.77925936,2514.8,2514.7,7.783]
[1747575424120,0.8028,2514.8,2514.7,7.783]
[1747575424644,0.8028,2515.4,2514.7,15.783]
[1747575424941,3.97617506,2515.0,2514.7,15.783]
[1747575425147,0.47926683,2515.3,2514.7,15.783]
[1747575425323,0.47926683,2515.3,2514.3,0.11332864]
[1747575425324,0.8028,2514.8,2514.3,0.11332864]
[1747575425642,0.8028,2514.8,2514.4,15.747]
[1747575425811,3.97685662,2514.6,2514.5,15.747]
[1747575426534,3.9766187,2514.7,2514.5,15.747]
[1747575427240,3.97709195,2514.4,2514.3,0.11332864]
[1747575427444,3.97709195,2514.4,2514.3,15.85032864]
[1747575428206,3.97709195,2514.4,2514.3,15.85332864]
[1747575429345,0.8178,2514.6,2514.3,15.85332864]
[1747575429346,4.79459633,2514.6,2514.3,15.85332864]
[1747575429640,0.8178,2514.6,2514.3,15.85332864]
[1747575429844,4.79466274,2514.6,2514.3,15.85332864]
[1747575430045,54.77837409,2514.8,2514.4,8.0]
[1747575430215,50.8018,2514.8,2514.4,8.0]
[1747575430549,50.0,2514.8,2514.4,8.0]
[1747575430723,50.0,2514.8,2514.4,11.97706033]
[1747575430922,50.0,2514.8,2514.5,0.37462442]
[1747575431132,50.0,2514.8,2514.5,4.35147824]
[1747575431333,50.0,2514.8,2514.6,5.34549463]
[1747575431646,50.0,2514.8,2514.7,0.55]
[1747575432722,50.0,2514.8,2514.7,0.92462442]
[1747575433057,53.97645936,2514.8,2514.7,8.37462442]
[1747575433220,53.97645936,2514.8,2514.7,24.09762442]
[1747575433654,50.0,2514.8,2514.7,25.47442442]
[1747575433811,50.0,2514.8,2514.7,29.4510419]
[1747575434112,50.0,2514.8,2514.7,29.67076428]
[1747575435753,50.0,2514.8,2514.7,40.28983728]
[1747575435966,49.75585937,2514.8,2514.7,38.18943128]
[1747575436267,46.99090609,2514.8,2514.7,52.68943128]
[1747575437177,46.99090609,2514.8,2514.7,52.74843128]
[1747575437322,46.99090609,2514.8,2514.7,36.96643128]
[1747575437523,46.99090609,2514.8,2514.7,22.20330528]
[1747575437761,46.03750265,2514.8,2514.7,37.01960528]
[1747575438268,44.60742652,2514.8,2514.7,37.01960528]
[1747575439078,44.60742652,2514.8,2514.7,5.94776428]
[1747575439236,44.60742652,2514.8,2514.7,21.17476428]
[1747575439428,44.60742652,2514.8,2514.7,0.5943468]
[1747575439878,44.60742652,2514.8,2514.7,24.3803468]
[1747575440378,44.60742652,2514.8,2514.7,16.3803468]
[1747575440743,44.60742652,2514.8,2514.7,24.3803468]
[1747575440947,44.60742652,2514.8,2514.7,20.35696428]
[1747575441332,44.60742652,2514.8,2514.7,29.69836428]
[1747575441771,44.60742652,2514.8,2514.7,40.94487512]
[1747575443058,44.60742652,2514.8,2514.7,43.57487512]
[1747575443353,44.60742652,2514.8,2514.7,58.07487512]
[1747575445333,42.70089539,2514.8,2514.7,58.07487512]
[1747575445739,42.70089539,2514.8,2514.7,47.45580212]
[1747575446070,40.84623769,2514.8,2514.7,54.81743728]
[1747575446271,0.01441107,2515.5,2515.4,13.32441085]
[1747575446569,0.01441107,2515.5,2515.4,51.50548385]
[1747575446770,0.01441107,2515.5,2515.4,44.93188323]
[1747575447276,0.01441107,2515.5,2515.4,28.81288323]
[1747575447452,0.01441107,2515.5,2515.4,44.92988323]
[1747575447650,0.01441107,2515.5,2515.4,45.30450765]
[1747575448044,0.01441107,2515.5,2515.4,29.18750765]
[1747575448367,0.01441107,2515.5,2515.4,45.29550765]
[1747575448560,0.01441107,2515.5,2515.4,29.18750765]
[1747575449076,0.01441107,2515.5,2515.4,32.66585765]
[1747575449278,0.01441107,2515.5,2515.4,40.66585765]
[1747575449476,0.01441107,2515.5,2515.4,24.56285765]
[1747575449646,0.01441107,2515.5,2515.4,40.66785765]
[1747575449849,0.01441107,2515.5,2515.4,51.28693065]
[1747575450153,0.01441107,2515.5,2515.4,52.08583065]
[1747575451448,0.01441107,2515.5,2515.4,52.38886064]
[1747575452039,0.01441107,2515.5,2515.4,36.28386064]
[1747575452377,0.01441107,2515.5,2515.4,66.88086064]
[1747575452578,0.01441107,2515.5,2515.4,16.31588764]
[1747575452754,0.01441107,2515.5,2515.4,43.05496064]
[1747575452952,0.25256846,2517.2,2515.6,8.16419478]
[1747575453274,0.25256846,2517.2,2517.0,3.97288398]
[1747575453449,0.25256846,2517.2,2517.1,24.73]
[1747575453640,0.25256846,2517.2,2517.1,28.70282587]
[1747575453839,0.25256846,2517.2,2517.1,8.37462442]
[1747575454073,0.25256846,2517.2,2517.1,24.56062442]
[1747575454273,0.25256846,2517.2,2517.1,8.37462442]
[1747575454576,0.25256846,2517.2,2517.1,24.56062442]
[1747575454870,0.25256846,2517.2,2517.1,24.85542247]
[1747575455879,1.07186846,2517.2,2517.1,0.37462442]
[1747575456255,1.07186846,2517.2,2516.5,0.62263592]
[1747575456439,4.79235023,2517.0,2516.5,0.62263592]
[1747575456645,0.8193,2516.8,2516.5,0.62263592]
[1747575456944,0.8193,2516.8,2516.6,8.062]
[1747575457339,0.8193,2516.8,2516.6,16.234]
[1747575457772,0.7693,2516.8,2516.6,16.234]
[1747575457959,0.7693,2516.8,2516.7,8.0]
[1747575459051,0.7693,2516.8,2516.5,0.91817864]
[1747575459052,0.7693,2516.8,2516.5,0.62263592]
[1747575459253,4.74265602,2516.8,2516.5,0.62263592]
[1747575459777,0.4742656,2516.7,2516.5,0.62263592]
[1747575460182,0.4742656,2516.7,2516.0,8.0]
[1747575461278,0.809,2516.6,2516.1,0.21962028]
[1747575461484,0.809,2516.6,2516.1,0.52455328]
[1747575461652,0.809,2516.6,2516.2,8.55]
[1747575461852,0.809,2516.6,2516.1,0.21962028]
[1747575462069,0.809,2516.6,2516.0,8.55]
[1747575462777,0.809,2516.6,2516.0,12.82812465]
[1747575462953,0.809,2516.6,2516.0,8.85359283]
[1747575463780,0.809,2516.6,2516.1,0.21989697]
[1747575464870,0.809,2516.6,2516.2,0.21989697]
[1747575465476,50.0,2516.6,2516.5,0.55]
[1747575465658,50.0,2516.6,2516.5,40.15677309]
[1747575465846,50.0,2516.6,2516.5,43.61747109]
[1747575466459,50.0,2516.6,2516.5,43.83736806]
[1747575467988,50.0,2516.6,2516.5,43.83436806]
[1747575468185,48.02305758,2516.6,2516.5,46.46436806]
[1747575468502,19.07823917,2516.6,2516.5,43.83436806]
[1747575468850,15.10923917,2516.6,2516.5,44.22892994]
[1747575469077,15.10923917,2516.6,2516.5,28.41031423]
[1747575469294,12.17211619,2516.6,2516.5,44.21175235]
[1747575469450,9.79171619,2516.6,2516.5,44.15731517]
[1747575469654,8.3629027,2516.6,2516.5,44.15731517]
[1747575469849,6.37827957,2516.6,2516.5,58.65731517]
[1747575470183,4.39365644,2516.6,2516.5,42.46131517]
[1747575470565,2.10904987,2516.6,2516.5,58.65731517]
[1747575470760,1.34816031,2516.6,2516.5,58.65731517]
[1747575471448,0.25256846,2517.2,2517.1,4.52282587]
[1747575471647,0.25256846,2517.2,2517.1,38.81629587]
[1747575471848,0.25256846,2517.2,2517.1,22.84719284]
[1747575472051,0.25256846,2517.2,2517.1,39.09719284]
[1747575472583,0.25256846,2517.2,2517.1,39.09519284]
[1747575472961,0.25256846,2517.2,2517.1,33.70050113]
[1747575473379,0.25256846,2517.2,2517.1,33.41895513]
[1747575473701,0.25256846,2517.2,2517.1,33.41695513]
[1747575474092,0.25256846,2517.2,2517.1,17.17795513]
[1747575474315,0.25256846,2517.2,2517.1,33.41195513]
[1747575474799,0.25256846,2517.2,2517.1,17.17795513]
[1747575474976,0.25256846,2517.2,2517.1,33.41895513]
[1747575476606,0.25256846,2517.2,2517.1,29.35810713]
[1747575476905,0.25256846,2517.2,2517.1,39.97718013]
[1747575477111,0.25256846,2517.2,2517.1,23.73618013]
[1747575477286,0.25256846,2517.2,2517.1,37.52091113]
[1747575477905,0.25256846,2517.2,2517.1,21.29091113]
[1747575478306,0.25256846,2517.2,2517.1,36.50631113]
[1747575478470,0.25256846,2517.2,2517.1,33.84092213]
[1747575478671,0.25256846,2517.2,2517.1,12.56710713]
[1747575478974,0.25256846,2517.2,2517.1,28.78410713]
[1747575479192,0.25256846,2517.2,2517.1,16.71828126]
[1747575479395,0.25256846,2517.2,2517.1,16.83728126]
[1747575479703,1.05176846,2517.2,2517.1,16.83728126]
[1747575479907,1.05176846,2517.2,2517.1,16.61238429]
[1747575480107,5.0244365,2517.2,2517.1,0.37438429]
[1747575480608,5.9737943,2517.2,2517.1,8.49838429]
[1747575480781,5.9737943,2517.2,2516.7,0.62407586]
[1747575480782,4.77249942,2516.8,2516.7,0.62407586]
[1747575480990,0.7992,2516.8,2516.7,16.87307586]
[1747575481188,0.7992,2516.8,2516.7,24.87307586]
[1747575481388,4.77249942,2516.8,2516.7,0.62407586]
[1747575481984,0.7992,2516.8,2516.7,0.62407586]
[1747575482916,5.64703955,2516.8,2516.7,0.62407586]
[1747575483208,4.74341519,2516.6,2516.5,19.561]
[1747575484005,4.74341519,2516.6,2516.5,11.437]
[1747575486000,0.7698,2516.3,2516.2,16.125]
[1747575487112,0.7698,2516.3,2516.2,24.331]
[1747575488320,0.7913,2516.7,2516.5,3.97376028]
[1747575488500,0.7913,2516.7,2516.4,3.97388524]
[1747575488700,0.7913,2516.7,2516.5,8.0]
[1747575488901,0.7913,2516.7,2516.5,11.97373649]
[1747575489501,0.7913,2517.0,2516.8,3.97329942]
[1747575489711,0.25256846,2517.2,2517.1,12.52282587]
[1747575489892,0.25256846,2517.2,2517.1,28.30782587]
[1747575490086,0.25256846,2517.2,2517.1,24.332]
[1747575490400,0.25256846,2517.2,2517.1,28.30482587]
[1747575490612,0.25256846,2517.2,2517.1,28.52438662]
[1747575492515,0.25256846,2517.2,2517.1,29.82958662]
[1747575492719,0.25256846,2517.2,2517.1,40.44865962]
[1747575493319,0.25256846,2517.2,2517.1,40.82347131]
[1747575494121,0.25256846,2517.2,2517.1,20.70229531]
[1747575494421,0.25256846,2517.2,2517.1,33.49929531]
[1747575494720,50.25256846,2517.2,2517.1,33.49929531]
[1747575495332,50.25256846,2517.2,2517.1,24.89337244]
[1747575495488,50.25256846,2517.2,2517.1,16.71937244]
[1747575495821,50.25256846,2517.2,2517.1,24.90437244]
[1747575497923,51.04386846,2517.2,2517.1,24.90437244]
[1747575498124,51.04386846,2517.2,2517.1,24.90637244]
[1747575498125,55.0165365,2517.2,2517.1,24.90637244]
[1747575498591,55.0165365,2517.2,2517.1,24.68681169]
[1747575498790,55.0165365,2517.2,2517.1,24.312]
[1747575499020,55.0165365,2517.2,2517.1,8.0]
[1747575499224,55.0165365,2517.2,2517.1,24.305]
[1747575499425,55.0165365,2517.2,2517.1,16.305]
[1747575499426,59.09226351,2517.2,2517.1,16.305]
[1747575500092,3.97294419,2517.1,2516.9,11.433]
[1747575500324,3.97294419,2517.1,2517.0,16.297]
[1747575500626,55.11959547,2517.2,2517.0,16.295]
[1747575500803,51.04386846,2517.2,2517.0,16.295]
[1747575501003,55.01653927,2517.2,2517.0,16.295]
[1747575501229,51.04386846,2517.2,2517.0,16.295]
[1747575501389,55.01654134,2517.2,2517.0,16.295]
[1747575501593,51.04386846,2517.2,2517.0,16.295]
[1747575502017,55.01669429,2517.2,2517.0,16.295]
[1747575502519,55.01662003,2517.2,2517.0,16.295]
[1747575502725,51.04386846,2517.2,2517.1,8.0]
[1747575503107,50.25256846,2517.2,2517.1,11.97282587]
[1747575503704,50.25256846,2517.2,2517.1,8.21998088]
[1747575504110,50.25256846,2517.2,2517.1,8.59542066]
[1747575504298,50.25256846,2517.2,2517.1,0.59542066]
[1747575504500,50.25256846,2517.2,2517.1,24.90342066]
[1747575505290,50.25256846,2517.2,2517.1,24.90346209]
[1747575505495,50.25256846,2517.2,2517.1,24.89446209]
[1747575505696,54.2252365,2517.2,2517.1,24.89746209]
[1747575505895,55.0272365,2517.2,2517.1,8.59546209]
[1747575506130,55.0272365,2517.2,2517.1,24.67543978]
[1747575506425,59.10296351,2517.2,2517.1,0.37543978]
[1747575506628,59.10296351,2517.2,2517.1,16.67143978]
[1747575507063,51.05456846,2517.2,2517.1,16.67143978]
[1747575507404,51.05456846,2517.2,2517.1,0.37543978]
[1747575507609,51.05456846,2517.2,2517.1,16.303]
[1747575510234,50.25256846,2517.2,2517.1,29.09662587]
[1747575510530,50.17039703,2517.2,2517.1,29.64662587]
[1747575510840,50.17039703,2517.2,2517.1,29.8666927]
[1747575511241,50.17039703,2517.2,2517.1,30.24226163]
[1747575511617,50.17039703,2517.2,2517.1,40.86133463]
[1747575511816,50.17039703,2517.2,2517.1,38.30999163]
[1747575512715,50.17039703,2517.2,2517.1,38.09695663]
[1747575514049,50.17039703,2517.2,2517.1,37.54695663]
[1747575514423,50.17039703,2517.2,2517.1,12.56846163]
[1747575514623,50.17039703,2517.2,2517.1,20.87446163]
[1747575515448,50.17039703,2517.2,2517.1,28.87446163]
[1747575516327,50.17039703,2517.2,2517.1,24.90163576]
[1747575516522,50.17039703,2517.2,2517.1,16.88963576]
[1747575516727,54.14306507,2517.2,2517.1,0.59563576]
[1747575516935,50.17039703,2517.2,2517.1,16.88763576]
[1747575517719,50.17039703,2517.2,2517.1,20.86046163]
[1747575518131,50.17039703,2517.2,2517.1,28.86046163]
[1747575518352,50.17039703,2517.2,2517.1,24.88763576]
[1747575518847,50.17039703,2517.2,2517.1,8.59563576]
[1747575519052,50.17039703,2517.2,2517.1,28.87846163]
[1747575520245,50.17039703,2517.2,2517.1,29.42846163]
[1747575520426,50.17039703,2517.2,2517.1,28.87846163]
[1747575521253,50.17039703,2517.2,2517.1,40.04753463]
[1747575522126,50.17039703,2517.2,2517.1,40.84473463]
[1747575522454,49.21787076,2517.2,2517.1,40.84473463]
[1747575524241,47.78915771,2517.2,2517.1,40.84473463]
[1747575525256,47.78915771,2517.2,2517.1,24.53473463]
[1747575525760,47.78915771,2517.2,2517.1,40.81073463]
[1747575525935,47.78915771,2517.2,2517.1,24.53473463]
[1747575526254,47.78915771,2517.2,2517.1,38.87119663]
[1747575526454,47.78915771,2517.2,2517.1,20.85898363]
[1747575526759,47.78915771,2517.2,2517.1,37.38534663]
[1747575527262,47.78915771,2517.2,2517.1,37.51206263]
[1747575527560,47.78915771,2517.2,2517.1,4.56846163]
[1747575527728,47.78915771,2517.2,2517.1,20.84146163]
[1747575527931,47.78915771,2517.2,2517.1,28.84146163]
[1747575528864,52.53232575,2517.2,2517.1,0.59563576]
[1747575529081,60.45996364,2517.2,2517.1,0.59563576]
[1747575529367,4.74332587,2517.1,2517.0,8.158]
[1747575529530,4.79299208,2517.1,2517.0,7.93492969]
[1747575529726,8.81905288,2517.1,2517.0,7.93492969]
[1747575530226,4.74348371,2517.0,2516.9,11.433]
[1747575530844,4.74443101,2516.4,2516.3,0.47070415]
[1747575533050,0.7705,2516.4,2516.3,0.47070415]
[1747575533661,4.74443101,2516.4,2515.8,8.30446669]
[1747575533863,4.74443101,2516.4,2515.9,16.245]
[1747575534434,4.74443101,2516.4,2515.9,20.21970085]
[1747575534664,4.74443101,2516.4,2515.9,16.245]
[1747575535664,0.7705,2516.4,2515.9,16.245]
[1747575535830,0.7705,2516.4,2516.0,16.237]
[1747575536430,3.97420706,2516.3,2516.0,16.237]
[1747575536645,0.7705,2516.4,2515.8,8.0]
[1747575536843,0.7865,2516.1,2515.9,8.124]
[1747575537370,0.7865,2516.1,2515.9,12.0987083]
[1747575537547,0.7865,2516.1,2515.9,8.124]
[1747575538067,4.07572701,2517.1,2516.0,3.97456279]
[1747575538068,3.85191088,2516.9,2516.0,3.97456279]
[1747575538233,0.8011,2516.6,2516.1,3.97436691]
[1747575538432,0.8011,2516.6,2516.1,3.97424845]
[1747575538632,0.8011,2516.6,2516.0,8.0]
[1747575538961,3.97379116,2516.5,2516.0,11.97447832]
[1747575539864,3.97405756,2516.4,2516.1,16.226]
[1747575540052,0.8011,2516.3,2516.1,16.226]
[1747575540235,4.77526058,2516.3,2515.8,8.0]
[1747575540573,4.77526058,2516.3,2515.7,11.432]
[1747575540574,4.77518894,2516.3,2516.2,16.226]
[1747575540759,0.8011,2516.3,2516.2,16.226]
[1747575540956,4.7751943,2516.3,2516.2,8.125]
[1747575541133,0.8011,2516.3,2516.2,16.221]
[1747575541672,0.8011,2516.3,2516.2,20.19524688]
[1747575541868,0.8011,2516.6,2516.3,3.97405667]
[1747575542055,4.77471928,2516.6,2515.8,8.0]
[1747575542369,4.77471928,2516.6,2516.0,11.97447029]
[1747575542950,0.04967865,2516.5,2515.8,8.0]
[1747575543277,0.8059,2516.6,2516.5,3.97377309]
[1747575543450,0.8059,2516.9,2516.5,3.97377309]
[1747575543634,0.8059,2516.9,2516.6,20.20158663]
[1747575544069,47.78915771,2517.2,2517.1,3.97282587]
[1747575544274,47.78915771,2517.2,2517.1,29.02892587]
[1747575544435,47.78915771,2517.2,2517.1,40.19799887]
[1747575545051,47.78915771,2517.2,2517.1,40.4173241]
[1747575545535,47.78915771,2517.2,2517.1,40.4103241]
[1747575545879,47.78915771,2517.2,2517.1,33.00541567]
[1747575546040,47.78915771,2517.2,2517.1,29.61241567]
[1747575546235,47.78915771,2517.2,2517.1,29.60941567]
[1747575546877,47.78915771,2517.2,2517.1,29.90334291]
[1747575547091,47.78915771,2517.2,2517.1,29.89834291]
[1747575547276,47.78915771,2517.2,2517.1,29.11824291]
[1747575547474,47.78915771,2517.2,2517.1,12.86024291]
[1747575547780,47.78915771,2517.2,2517.1,17.14941704]
[1747575547977,47.78915771,2517.2,2517.1,16.63816457]
[1747575548164,47.78915771,2517.2,2517.1,28.61099044]
[1747575548376,47.78915771,2517.2,2517.1,24.63816457]
[1747575548584,47.78915771,2517.2,2517.1,24.264]
[1747575549268,47.78915771,2517.2,2517.1,24.255]
[1747575549461,47.78915771,2517.2,2517.1,8.0]
[1747575549666,47.78915771,2517.2,2517.1,24.252]
[1747575550067,47.78915771,2517.2,2517.1,24.248]
[1747575550467,47.78915771,2517.2,2517.1,28.22082587]
[1747575550663,47.78915771,2517.2,2517.1,11.97282587]
[1747575550880,47.78915771,2517.2,2517.1,8.0]
[1747575551091,47.78915771,2517.2,2517.1,24.24]
[1747575551863,47.78915771,2517.2,2517.1,8.0]
[1747575552186,50.41909409,2517.2,2517.1,24.232]
[1747575552383,54.39182607,2517.2,2517.0,8.109]
[1747575552699,50.41909409,2517.2,2517.0,8.109]
[1747575552896,47.78915771,2517.2,2517.0,8.109]
[1747575553063,47.78915771,2517.2,2517.1,11.97282587]
[1747575553256,47.78915771,2517.2,2517.1,8.0]
[1747575553491,47.78915771,2517.2,2517.1,11.97282587]
[1747575553993,47.78915771,2517.2,2517.1,8.0]
[1747575554166,47.78915771,2517.2,2517.1,24.22]
[1747575554973,3.97292344,2517.1,2517.0,8.091]
[1747575555192,3.97298371,2517.0,2516.9,0.11203798]
[1747575555396,3.97298371,2517.0,2516.9,8.20503798]
[1747575555758,4.80008371,2517.0,2516.9,0.11203798]
[1747575555988,8.87581072,2517.0,2516.9,0.11203798]
[1747575556401,18.92581072,2517.0,2516.9,0.11203798]
[1747575559400,4.77237309,2516.5,2516.4,8.077]
[1747575560271,0.7986,2516.5,2516.4,8.077]
[1747575561303,4.77237309,2516.5,2516.4,8.077]
[1747575561504,0.7986,2516.5,2516.4,8.077]
[1747575562006,4.77237309,2516.5,2516.4,8.077]
[1747575562472,0.7986,2516.5,2516.4,8.077]
[1747575563175,4.77237309,2516.5,2516.4,8.077]
[1747575564212,0.7986,2516.5,2516.4,8.077]
[1747575565608,4.7724521,2516.5,2516.4,8.049]
[1747575566708,0.7986,2516.5,2516.4,8.049]
[1747575567275,4.77237309,2516.5,2516.4,8.049]
[1747575567476,0.7986,2516.5,2516.4,8.049]
[1747575569236,0.7864,2516.8,2516.5,3.97367547]
[1747575569518,47.78915771,2517.2,2517.0,3.97290483]
[1747575569738,47.78915771,2517.2,2517.1,28.11382587]
[1747575570076,47.78915771,2517.2,2517.1,24.141]
[1747575570322,47.78915771,2517.2,2517.1,8.0]
[1747575570479,47.78915771,2517.2,2517.1,28.10982587]
[1747575570680,47.78915771,2517.2,2517.1,24.137]
[1747575570879,47.78915771,2517.2,2517.1,24.133]
[1747575571304,47.78915771,2517.2,2517.1,28.10582587]
[1747575571578,47.78915771,2517.2,2517.1,28.09882587]
[1747575571813,47.78915771,2517.2,2517.1,28.86832587]
[1747575572118,47.78915771,2517.2,2517.1,39.70327877]
[1747575572315,47.78915771,2517.2,2517.1,29.46380577]
[1747575572489,47.78915771,2517.2,2517.1,37.08536777]
[1747575572697,47.78915771,2517.2,2517.1,37.63536777]
[1747575573890,47.78915771,2517.2,2517.1,52.13536777]
[1747575574682,7.32987872,2517.2,2517.1,51.36586777]
[1747575574882,1.35307294,2517.2,2517.1,52.36843226]
[1747575575435,0.0150182,2518.6,2518.5,11.97061743]
[1747575575582,0.0150182,2518.6,2518.5,39.53061743]
[1747575575780,0.0150182,2518.6,2518.5,39.75061504]
[1747575576029,0.0150182,2518.6,2518.5,40.67609733]
[1747575576389,0.0150182,2518.6,2518.5,51.29517033]
[1747575576984,0.0150182,2518.6,2518.5,35.16917033]
[1747575577182,0.0150182,2518.6,2518.5,65.79517033]
[1747575577380,0.0150182,2518.6,2518.5,51.29517033]
[1747575577624,0.0150182,2518.6,2518.5,51.58665356]
[1747575577783,0.0150182,2518.6,2518.5,48.99378456]
[1747575577983,0.0150182,2518.6,2518.5,46.55844056]
[1747575578293,0.0150182,2518.6,2518.5,41.07449101]
[1747575578505,0.0150182,2518.6,2518.5,51.69356401]
[1747575579320,0.0150182,2518.6,2518.5,24.40049101]
[1747575579535,0.0150182,2518.6,2518.5,40.3064934]
[1747575579825,0.0150182,2518.6,2518.5,28.8804934]
[1747575580201,0.0150182,2518.6,2518.5,28.50501111]
[1747575581004,0.0150182,2518.6,2518.5,0.10891045]
[1747575581330,0.0150182,2518.6,2518.5,28.21152788]
[1747575581696,0.0150182,2518.6,2518.5,28.76152788]
[1747575581902,0.0150182,2518.6,2518.5,39.38060088]
[1747575582432,0.0150182,2518.6,2518.5,39.96958919]
[1747575582632,0.005,2519.3,2519.2,4.51951413]
[1747575582820,2.59295004,2520.3,2519.6,12.51888394]
[1747575583021,3.96794637,2520.2,2519.6,26.31388194]
[1747575583334,0.7915,2520.1,2519.6,19.429]
[1747575583509,3.96863269,2519.8,2519.6,35.614]
[1747575583693,0.40236327,2519.7,2519.6,27.614]
[1747575583901,3.97372643,2519.7,2519.6,27.614]
[1747575584337,4.76522643,2519.7,2519.6,11.13236522]
[1747575584649,3.9692131,2519.4,2518.8,11.429]
[1747575584796,3.9692131,2519.4,2519.0,8.0]
[1747575584995,4.76524918,2519.7,2519.0,8.0]
[1747575585298,4.83694545,2519.6,2519.0,8.0]
[1747575585497,3.91919711,2519.5,2519.0,8.0]
[1747575585956,0.7915,2519.5,2519.0,8.0]
[1747575586155,4.76132929,2519.0,2518.9,16.27050075]
[1747575586360,0.7915,2519.0,2518.9,16.27050075]
[1747575586855,4.76132929,2519.0,2518.9,16.27050075]
[1747575587057,5.63441954,2519.0,2518.9,8.11450075]
[1747575587276,5.63441954,2519.0,2518.9,0.06750075]
[1747575587450,5.68405172,2519.0,2518.9,0.06750075]
[1747575587922,5.63441954,2519.0,2518.9,0.06750075]
[1747575589761,0.7915,2518.4,2518.3,24.19]
[1747575589959,3.97059127,2518.6,2518.3,16.19]
[1747575590329,3.97062244,2518.5,2518.3,16.19]
[1747575590529,3.97069645,2518.5,2518.3,16.19]
[1747575590750,3.97077509,2518.4,2518.3,8.0]
[1747575590960,3.97138598,2518.1,2517.3,3.97245701]
[1747575591165,3.97119342,2518.2,2517.7,8.161]
[1747575591462,3.97119342,2518.2,2517.5,11.97209486]
[1747575591463,3.97119342,2518.2,2517.8,8.161]
[1747575591626,3.97151582,2518.0,2517.8,8.047]
[1747575591833,3.9715636,2517.9,2517.8,8.047]
[1747575592170,3.9715636,2517.9,2517.2,11.428]
[1747575592171,3.97233661,2517.5,2517.2,11.428]
[1747575592339,3.97233661,2517.5,2517.4,16.184]
[1747575592547,3.97233661,2517.5,2517.4,8.51560507]
[1747575592751,3.97215722,2517.6,2517.4,8.51560507]
[1747575592951,0.7915,2517.9,2517.5,0.3315919]
[1747575592952,3.97172134,2517.8,2517.5,0.3315919]
[1747575593157,3.97203686,2517.6,2517.5,0.3315919]
[1747575593761,4.76353686,2517.6,2517.5,0.3315919]
[1747575594078,0.7915,2517.6,2517.5,0.3315919]
[1747575594233,4.76353686,2517.6,2517.5,0.3315919]
[1747575594434,0.7915,2517.6,2517.5,0.3315919]
[1747575594654,3.9153659,2518.2,2517.3,8.047]
[1747575594861,3.97151303,2518.0,2517.4,11.97234658]
[1747575595034,0.7915,2518.1,2517.5,3.97207842]
[1747575595242,0.7915,2518.1,2517.6,8.0]
[1747575595563,3.97141129,2518.0,2517.7,8.199]
[1747575595864,0.7915,2518.4,2517.8,8.182]
[1747575596068,0.7915,2518.4,2517.9,11.97148555]
[1747575596371,0.7915,2518.9,2518.1,3.9711206]
[1747575596571,3.97036392,2518.7,2518.2,8.193]
[1747575596875,3.97090129,2518.4,2518.3,8.182]
[1747575597451,3.9712039,2518.2,2518.1,8.208]
[1747575597638,3.9712039,2518.2,2518.1,24.39]
[1747575597840,3.97140912,2518.0,2517.9,8.205]
[1747575598153,0.04964474,2518.1,2517.4,8.0]
[1747575598354,3.97172475,2517.8,2517.5,16.389]
[1747575598563,3.97187791,2517.8,2517.6,16.389]
[1747575598743,3.97163761,2517.9,2517.6,16.389]
[1747575598947,10.05,2518.2,2517.6,20.36090349]
[1747575599255,0.8178,2518.3,2517.8,3.97168996]
[1747575599461,0.8178,2518.3,2517.9,11.97152326]
[1747575599670,0.8178,2518.3,2517.9,8.0]
[1747575600176,0.8178,2518.3,2517.7,8.0]
[1747575600336,0.8178,2518.3,2517.4,0.46627247]
[1747575600337,0.8178,2518.3,2517.9,8.0]
[1747575600535,3.97119273,2518.2,2517.9,8.0]
[1747575600956,0.87598256,2518.2,2517.9,8.182]
[1747575601270,3.97116702,2518.2,2517.9,8.182]
[1747575601472,3.97124816,2518.1,2517.9,8.182]
[1747575601671,3.97135227,2518.1,2517.9,8.182]
[1747575602181,0.8178,2518.3,2517.9,8.182]
[1747575602374,13.9653659,2518.7,2517.9,8.182]
[1747575602375,0.8178,2518.6,2518.0,8.0]
[1747575602550,0.8178,2518.6,2518.1,3.97124816]
[1747575602879,10.05,2518.7,2518.4,3.97063192]
[1747575603079,10.05,2518.7,2518.5,16.401]
[1747575603240,0.8178,2519.0,2518.7,3.97022447]
[1747575603574,10.05,2519.2,2518.9,3.96992531]
[1747575603774,0.7539,2519.3,2519.0,16.402]
[1747575604074,0.7639,2519.7,2519.0,20.37179089]
[1747575604252,6.21096689,2519.7,2519.2,3.96946648]
[1747575604456,3.96896564,2519.6,2519.1,3.96958316]
[1747575604649,3.96902849,2519.6,2519.2,16.398]
[1747575604856,3.96909259,2519.5,2519.2,16.398]
[1747575605177,2.24215415,2519.7,2519.2,16.398]
[1747575605375,3.96889837,2519.6,2519.2,16.398]
[1747575605542,3.96906275,2519.5,2519.2,16.398]
[1747575605741,3.96895722,2519.6,2519.2,16.398]
[1747575606177,0.01,2519.7,2519.5,3.96900373]
[1747575606381,0.01,2519.7,2519.3,11.9693117]
[1747575606382,0.01,2519.7,2519.3,11.96929007]
[1747575606541,0.01,2519.7,2519.4,11.96917682]
[1747575607075,3.97884751,2519.7,2519.4,8.0]
[1747575607277,0.01,2519.7,2519.4,8.0]
[1747575607486,0.01,2519.7,2519.4,11.96912081]
[1747575607679,0.01,2519.7,2519.5,3.96895021]
[1747575607865,0.01,2519.7,2519.4,11.9691759]
[1747575608184,0.01,2519.7,2519.2,27.8949]
[1747575608185,0.01,2519.7,2519.6,8.0]
[1747575608485,3.96895937,2519.6,2519.3,8.0]
[1747575608784,3.96904147,2519.5,2519.4,8.181]
[1747575609168,4.79692413,2519.6,2519.4,8.181]